bitfinex-derivatives/quotes_SOLF0:USTF0_20250331
["timestamp","ask_amount","ask_price","bid_price","bid_amount"]
[1743426072802,0.05537387,125.55,125.52,0.05126011]
[1743426073000,0.05537387,125.55,125.52,8.01816011]
[1743426073803,0.05537387,125.55,125.52,0.05126011]
[1743426073995,8.02117387,125.55,125.52,0.05126011]
[1743426074300,0.05537387,125.55,125.52,0.05126011]
[1743426074602,22.97295567,125.55,125.52,0.05126011]
[1743426075301,7.9668,125.53,125.52,0.05126011]
[1743426076099,7.9665,125.54,125.52,0.05126011]
[1743426076293,27.07725567,125.55,125.46,35.82]
[1743426076496,401.8558,125.56,125.47,4.2062]
[1743426076696,401.8558,125.56,125.47,8.2378]
[1743426076900,401.8558,125.56,125.48,62.0]
[1743426077402,8.01785354,125.53,125.51,0.05721233]
[1743426077798,0.05045354,125.53,125.51,0.05721233]
[1743426079505,8.01775354,125.53,125.51,0.05721233]
[1743426079806,0.05045354,125.53,125.51,0.05721233]
[1743426080202,7.9674,125.52,125.51,0.05721233]
[1743426080704,8.01765354,125.53,125.51,0.05721233]
[1743426080896,0.05045354,125.53,125.51,0.05721233]
[1743426081298,7.9674,125.52,125.51,0.05721233]
[1743426081701,22.41395277,125.53,125.51,0.05721233]
[1743426081913,0.05045354,125.53,125.51,0.05721233]
[1743426082405,14.44685277,125.53,125.51,0.05721233]
[1743426082604,7.9674,125.52,125.51,0.05721233]
[1743426083305,22.41395277,125.53,125.51,0.05721233]
[1743426083504,14.44685277,125.53,125.51,0.05721233]
[1743426083908,7.9674,125.52,125.51,0.05721233]
[1743426084210,14.39639923,125.51,125.45,39.6615]
[1743426084410,14.39639923,125.49,125.38,286.58]
[1743426084611,14.39639923,125.48,125.39,62.23769923]
[1743426085106,22.36689923,125.48,125.43,7.9728]
[1743426085311,0.05067544,125.45,125.43,7.9728]
[1743426086204,0.05067544,125.45,125.42,35.49959269]
[1743426086506,0.05067544,125.45,125.42,0.05959269]
[1743426089511,0.05067544,125.45,125.43,7.9728]
[1743426089813,0.05067544,125.45,125.42,0.05959269]
[1743426090013,362.0,125.5,125.42,0.05959269]
[1743426090205,362.0,125.5,125.41,23.05911871]
[1743426091015,385.05911871,125.5,125.42,62.0]
[1743426091213,0.06060914,125.47,125.44,0.05196466]
[1743426091414,0.06060914,125.47,125.44,8.02416466]
[1743426091614,0.06060914,125.47,125.44,35.29196466]
[1743426092015,0.06060914,125.47,125.44,8.02416466]
[1743426092216,0.06060914,125.47,125.44,0.05196466]
[1743426093014,7.85867475,125.54,125.53,7.56185218]
[1743426093219,131.48336526,125.56,125.48,286.76]
[1743426093518,131.48336526,125.56,125.49,35.34]
[1743426093720,481.91072229,125.55,125.49,43.289]
[1743426093910,481.91072229,125.55,125.49,35.32]
[1743426094420,362.0,125.61,125.54,23.05911871]
[1743426094619,362.0,125.61,125.6,7.9624]
[1743426094816,362.0,125.67,125.6,36.2]
[1743426095418,362.0,125.66,125.6,36.2]
[1743426095615,0.0583931,125.65,125.62,0.05942167]
[1743426096415,0.0583931,125.65,125.62,8.02022167]
[1743426096820,0.0583931,125.65,125.62,0.05942167]
[1743426097021,0.0583931,125.65,125.62,8.02012167]
[1743426097215,0.0583931,125.65,125.62,0.05942167]
[1743426097410,0.0583931,125.65,125.55,23.05911871]
[1743426097614,362.0,125.64,125.57,7.9642]
[1743426097918,389.23981871,125.63,125.55,36.06]
[1743426098121,362.0,125.62,125.55,44.0252]
[1743426098319,23.05911871,125.61,125.55,44.0252]
[1743426098520,23.05911871,125.61,125.52,36.06]
[1743426098720,23.05911871,125.61,125.57,0.05581488]
[1743426098721,0.0538391,125.59,125.57,0.05581488]
[1743426098925,0.0538391,125.59,125.55,7.9652]
[1743426099220,0.0538391,125.59,125.52,36.06]
[1743426099720,0.0538391,125.59,125.54,23.05911871]
[1743426100019,0.0538391,125.59,125.55,0.0560992]
[1743426100216,0.0538391,125.59,125.58,7.9636]
[1743426100423,0.0538391,125.59,125.58,69.9636]
[1743426100724,362.0,125.66,125.58,85.05911871]
[1743426101721,362.0,125.66,125.6,7.9619]
[1743426102018,0.05307705,125.63,125.61,0.0576943]
[1743426102421,0.05307705,125.63,125.61,8.0193943]
[1743426103319,0.05307705,125.63,125.62,7.9611]
[1743426104123,3.9593,125.67,125.64,7.9595]
[1743426104324,3.9593,125.67,125.61,0.0576943]
[1743426104521,281.6428,125.74,125.68,15.9143]
[1743426104825,12.2355,125.86,125.73,23.05911871]
[1743426105018,12.2355,125.86,125.77,23.05911871]
[1743426105218,12.2355,125.86,125.8,7.9493]
[1743426105420,0.05056373,125.83,125.8,0.05240488]
[1743426105820,0.05056373,125.83,125.82,7.9484]
[1743426106023,0.05056373,125.83,125.82,44.0084]
[1743426106422,0.05056373,125.83,125.82,36.06]
[1743426107627,0.05056373,125.83,125.82,98.06]
[1743426107826,0.05056373,125.83,125.8,0.05240488]
[1743426110123,0.05056373,125.83,125.75,35.72]
[1743426110326,37.23174174,125.8,125.64,395.23174174]
[1743426110522,37.23174174,125.8,125.7,37.23174174]
[1743426110718,7.9506,125.79,125.71,35.8]
[1743426110922,43.7906,125.79,125.71,35.8]
[1743426111124,4.2047,125.78,125.71,35.8]
[1743426111323,0.06117893,125.76,125.74,0.05322166]
[1743426111826,0.06117893,125.76,125.71,35.8]
[1743426112026,0.06117893,125.76,125.66,99.23174174]
[1743426112226,41.43644174,125.78,125.67,35.78]
[1743426112426,7.9521,125.77,125.67,35.78]
[1743426112726,41.43644174,125.78,125.67,35.78]
[1743426112923,11.8852,125.76,125.71,0.05851111]
[1743426113228,0.05749013,125.74,125.71,0.05851111]
[1743426115730,37.28923187,125.74,125.53,358.0]
[1743426115926,37.23174174,125.74,125.62,37.23174174]
[1743426116126,37.23174174,125.74,125.63,35.56]
[1743426116832,0.05455794,125.7,125.67,0.06094063]
[1743426118632,8.01065794,125.7,125.67,0.06094063]
[1743426118834,0.05455794,125.7,125.67,0.06094063]
[1743426119832,8.01095794,125.7,125.67,0.06094063]
[1743426120437,0.05455794,125.7,125.67,0.06094063]
[1743426121036,0.05455794,125.7,125.67,35.34094063]
[1743426121940,0.05455794,125.7,125.67,97.34094063]
[1743426122140,0.05455794,125.7,125.67,0.06094063]
[1743426122840,7.957,125.69,125.67,0.06094063]
[1743426123238,0.05455794,125.7,125.67,0.06094063]
[1743426125134,0.05455794,125.7,125.67,97.20094063]
[1743426126142,0.05455794,125.7,125.67,35.20094063]
[1743426128444,0.05455794,125.7,125.67,0.06094063]
[1743426128943,7.9573,125.68,125.67,0.06094063]
[1743426129339,0.05455794,125.7,125.67,0.06094063]
[1743426130641,0.05455794,125.7,125.68,43.1768]
[1743426130841,0.05455794,125.7,125.68,35.22]
[1743426131045,3.9326,125.76,125.69,22.95382763]
[1743426131440,3.9326,125.76,125.68,35.22]
[1743426131740,7.9548,125.72,125.68,35.22]
[1743426132341,0.0595598,125.71,125.69,0.06050225]
[1743426132745,0.0595598,125.71,125.69,62.06050225]
[1743426133146,0.0595598,125.71,125.69,0.06050225]
[1743426133642,7.9571,125.69,125.65,35.22]
[1743426133843,7.9571,125.69,125.63,22.95382763]
[1743426134147,26.77932763,125.78,125.66,22.95382763]
[1743426134441,31.28292763,125.76,125.67,35.44]
[1743426134643,0.05331072,125.73,125.7,0.0543302]
[1743426135840,0.05331072,125.73,125.71,35.66]
[1743426136049,0.05331072,125.73,125.72,92.90862763]
[1743426136646,3.8255,125.78,125.73,7.9536]
[1743426136945,3.8255,125.78,125.72,22.95382763]
[1743426137154,4.1234,125.81,125.72,22.95382763]
[1743426137451,4.1234,125.81,125.73,4.0801]
[1743426137755,0.05677456,125.78,125.76,0.05935192]
[1743426137945,0.05677456,125.78,125.76,35.63935192]
[1743426139849,0.05677456,125.78,125.77,62.0]
[1743426142248,0.05677456,125.78,125.76,35.63935192]
[1743426145455,0.05677456,125.78,125.76,97.63935192]
[1743426146351,0.05677456,125.78,125.76,35.63935192]
[1743426147158,0.05677456,125.78,125.76,0.05935192]
[1743426147756,8.00807456,125.78,125.76,0.05935192]
[1743426148848,0.05677456,125.78,125.76,0.05935192]
[1743426149651,8.00807456,125.78,125.76,0.05935192]
[1743426150052,0.05677456,125.78,125.76,0.05935192]
[1743426150953,0.05677456,125.78,125.76,8.01105192]
[1743426151159,0.05677456,125.78,125.76,0.05935192]
[1743426151953,0.05677456,125.78,125.77,7.9516]
[1743426152155,22.95382763,125.9,125.76,53.92700718]
[1743426152354,4.0251,125.88,125.79,22.95382763]
[1743426152554,4.0251,125.88,125.8,35.12]
[1743426152760,26.97892763,125.88,125.8,35.12]
[1743426152955,22.95382763,125.86,125.8,62.0]
[1743426153156,22.95382763,125.84,125.8,62.0]
[1743426153356,4.1922,125.83,125.77,35.1]
[1743426153556,7.9487,125.82,125.77,35.1]
[1743426153761,4.1922,125.83,125.77,35.1]
[1743426154061,38.953,125.85,125.77,35.1]
[1743426154361,11.8198,125.85,125.79,7.95]
[1743426154561,0.0549168,125.82,125.8,0.05411548]
[1743426155964,7.9667,125.88,125.81,34.94]
[1743426156362,7.9667,125.88,125.82,62.0]
[1743426156563,4.0251,125.88,125.84,7.9471]
[1743426156966,11.9698,125.88,125.82,62.0]
[1743426157163,0.05636975,125.87,125.85,0.05303275]
[1743426157858,0.05636975,125.87,125.85,34.89303275]
[1743426158060,4.0497,125.92,125.85,34.89303275]
[1743426158658,31.05352763,125.96,125.86,22.95382763]
[1743426158860,4.0491,125.95,125.85,34.84]
[1743426159066,22.95382763,125.92,125.83,286.04]
[1743426159368,22.95382763,125.88,125.81,34.82]
[1743426159666,7.9461,125.86,125.81,34.82]
[1743426159868,8.00604226,125.86,125.83,0.05017763]
[1743426160368,0.05994226,125.86,125.83,0.05017763]
[1743426162369,23.01376989,125.86,125.83,0.05017763]
[1743426162572,7.9472,125.84,125.83,0.05017763]
[1743426162867,23.01376989,125.86,125.83,0.05017763]
[1743426162868,0.05994226,125.86,125.83,0.05017763]
[1743426163675,8.00594226,125.86,125.83,0.05017763]
[1743426164865,0.05994226,125.86,125.83,0.05017763]
[1743426165571,8.00614226,125.86,125.83,0.05017763]
[1743426165770,0.05994226,125.86,125.83,0.05017763]
[1743426165966,8.00594226,125.86,125.83,0.05017763]
[1743426166368,0.05994226,125.86,125.83,0.05017763]
[1743426166972,8.00614226,125.86,125.83,0.05017763]
[1743426167362,0.05994226,125.86,125.83,0.05017763]
[1743426167872,7.9472,125.84,125.83,0.05017763]
[1743426168472,7.9469,125.85,125.83,0.05017763]
[1743426168675,0.05994226,125.86,125.83,0.05017763]
[1743426169064,7.9472,125.84,125.83,0.05017763]
[1743426169465,8.00614226,125.86,125.83,0.05017763]
[1743426170579,7.9466,125.85,125.83,0.05017763]
[1743426170775,0.05994226,125.86,125.83,0.05017763]
[1743426170980,23.01376989,125.86,125.83,0.05017763]
[1743426171181,22.95382763,125.84,125.77,62.0]
[1743426171380,22.95382763,125.84,125.78,34.16]
[1743426171982,7.9489,125.82,125.78,34.16]
[1743426172280,22.95382763,125.82,125.75,34.14]
[1743426172477,8.16352704,125.81,125.79,0.05407433]
[1743426172877,3.99078724,125.81,125.74,34.14]
[1743426173381,3.99078724,125.81,125.76,0.05055138]
[1743426173673,22.95382763,125.8,125.76,0.05055138]
[1743426173878,26.82282763,125.8,125.76,0.05055138]
[1743426174078,22.95382763,125.78,125.76,0.05055138]
[1743426174270,22.95382763,125.78,125.72,34.04]
[1743426174679,7.9531,125.75,125.72,34.04]
[1743426175381,8.00424985,125.75,125.72,96.09348035]
[1743426175877,8.00424985,125.75,125.72,62.05348035]
[1743426176081,0.05114985,125.75,125.72,0.05348035]
[1743426177381,0.05114985,125.75,125.72,8.00788035]
[1743426177582,0.05114985,125.75,125.72,0.05348035]
[1743426177780,0.05114985,125.75,125.74,7.9535]
[1743426177982,0.05114985,125.75,125.72,0.05348035]
[1743426178373,22.95382763,125.85,125.74,22.95382763]
[1743426178579,4.1,125.85,125.76,22.95382763]
[1743426178778,4.1,125.85,125.78,22.95382763]
[1743426178982,4.1,125.85,125.79,95.86]
[1743426179575,0.0530228,125.83,125.81,0.05721595]
[1743426180882,0.0530228,125.83,125.81,8.00601595]
[1743426181081,0.0530228,125.83,125.81,0.05721595]
[1743426182382,0.0530228,125.83,125.82,7.9484]
[1743426185286,0.0530228,125.83,125.81,0.05721595]
[1743426187885,0.0530228,125.83,125.81,8.00601595]
[1743426188279,0.0530228,125.83,125.81,70.00601595]
[1743426188480,0.0530228,125.83,125.81,8.00601595]
[1743426189788,0.0530228,125.83,125.81,0.05721595]
[1743426190190,0.0530228,125.83,125.76,33.52]
[1743426190379,7.9487,125.82,125.77,7.9513]
[1743426190780,7.8676,125.83,125.75,33.52]
[1743426191289,0.05994468,125.8,125.78,0.0603559]
[1743426191486,0.05994468,125.8,125.78,62.0603559]
[1743426191691,0.05994468,125.8,125.79,33.52]
[1743426191888,0.05994468,125.8,125.79,41.4703]
[1743426192790,0.05994468,125.8,125.79,33.52]
[1743426192981,0.05994468,125.8,125.78,62.0603559]
[1743426193185,0.05994468,125.8,125.78,0.0603559]
[1743426195292,23.01377231,125.8,125.74,33.52]
[1743426195497,22.95382763,125.8,125.74,33.52]
[1743426196091,22.95382763,125.8,125.75,62.0]
[1743426196292,7.9511,125.78,125.75,62.0]
[1743426196487,0.05123944,125.79,125.76,0.05169745]
[1743426196687,0.05123944,125.79,125.72,7.9545]
[1743426196889,0.05123944,125.79,125.71,33.52]
[1743426197189,22.95382763,125.8,125.71,33.52]
[1743426197593,45.7268,125.81,125.71,33.52]
[1743426197792,0.05204955,125.77,125.74,0.03419106]
[1743426197988,0.05204955,125.77,125.74,33.55419106]
[1743426200490,8.00404955,125.77,125.74,33.55419106]
[1743426200696,0.05204955,125.77,125.74,33.55419106]
[1743426200897,0.05204955,125.77,125.74,0.03419106]
[1743426201097,8.00394955,125.77,125.74,7.98749106]
[1743426201407,0.05204955,125.77,125.74,7.98749106]
[1743426201796,8.00374955,125.77,125.74,7.98749106]
[1743426201999,0.05204955,125.77,125.74,0.03419106]
[1743426202195,22.95382763,125.76,125.74,0.03419106]
[1743426202397,7.9529,125.75,125.74,0.03419106]
[1743426202896,7.9542,125.73,125.67,3.9331]
[1743426203194,22.95382763,125.74,125.65,33.52]
[1743426203399,7.9557,125.71,125.63,4.0572]
[1743426203599,7.9557,125.71,125.64,33.52]
[1743426203902,7.9576,125.68,125.62,84.44593443]
[1743426204202,22.95382763,125.7,125.64,33.52]
[1743426204401,22.95382763,125.7,125.62,92.40673443]
[1743426204402,0.0570537,125.66,125.62,92.40673443]
[1743426204599,0.0570537,125.66,125.62,125.92673443]
[1743426204796,0.0570537,125.66,125.62,33.52]
[1743426205200,0.0570537,125.66,125.63,62.0]
[1743426206702,0.0570537,125.66,125.63,69.9603]
[1743426207102,0.0570537,125.66,125.63,62.0]
[1743426208203,0.0570537,125.66,125.64,7.9595]
[1743426208603,0.0570537,125.66,125.63,62.0]
[1743426208803,0.0570537,125.66,125.63,69.9602]
[1743426209406,0.0570537,125.66,125.64,7.9598]
[1743426209707,0.0570537,125.66,125.65,33.54]
[1743426210004,0.0570537,125.66,125.65,41.4992]
[1743426211208,7.9711,125.73,125.67,7.9574]
[1743426211703,7.9711,125.73,125.66,7.9582]
[1743426211903,7.9551,125.72,125.65,33.54]
[1743426212105,22.95382763,125.72,125.65,33.54]
[1743426212305,0.0594459,125.7,125.67,0.0570537]
[1743426212912,0.0594459,125.7,125.67,8.0146537]
[1743426213202,0.0594459,125.7,125.67,0.0570537]
[1743426213409,0.0594459,125.7,125.67,8.0143537]
[1743426213604,0.0594459,125.7,125.67,0.0570537]
[1743426214201,30.96977353,125.7,125.67,0.0570537]
[1743426214400,23.01327353,125.7,125.67,0.0570537]
[1743426214603,0.0594459,125.7,125.67,0.0570537]
[1743426215515,8.0155459,125.7,125.67,0.0570537]
[1743426215915,23.01327353,125.7,125.63,62.0]
[1743426216113,7.957,125.69,125.63,62.0]
[1743426216314,22.95382763,125.7,125.64,7.9595]
[1743426216516,30.90992763,125.7,125.63,62.0]
[1743426216816,22.95382763,125.7,125.66,7.9583]
[1743426217116,0.06100735,125.68,125.63,62.0]
[1743426217414,0.06100735,125.68,125.65,7.9588]
[1743426217614,0.06100735,125.68,125.63,62.0]
[1743426218013,0.06100735,125.68,125.65,7.9587]
[1743426218213,0.06100735,125.68,125.63,62.0]
[1743426219612,23.01483498,125.68,125.62,41.5008]
[1743426219916,12.0591,125.67,125.62,41.5008]
[1743426220513,4.1009,125.67,125.63,7.9603]
[1743426220713,4.1009,125.67,125.62,33.54]
[1743426220905,4.1009,125.67,125.6,286.06]
[1743426221108,22.95382763,125.66,125.56,23.22742763]
[1743426221308,0.0603985,125.65,125.59,33.54]
[1743426221517,22.95382763,125.64,125.55,3.9564]
[1743426221706,0.05901876,125.63,125.59,7.9629]
[1743426221907,0.05901876,125.63,125.56,33.54]
[1743426222114,0.05901876,125.63,125.57,1.42840423]
[1743426222312,0.05901876,125.63,125.58,22.95382763]
[1743426222513,0.05901876,125.63,125.59,1.42840423]
[1743426222717,0.05901876,125.63,125.62,7.9611]
[1743426223317,22.95382763,125.72,125.6,56.49382763]
[1743426223518,4.0586,125.71,125.62,22.95382763]
[1743426223718,12.0143,125.71,125.63,33.56]
[1743426224018,4.0586,125.71,125.63,33.56]
[1743426224714,0.05443346,125.68,125.66,0.05817362]
[1743426225013,0.05443346,125.68,125.67,7.9579]
[1743426225518,0.05443346,125.68,125.66,33.59817362]
[1743426226414,0.05443346,125.68,125.66,95.59817362]
[1743426227319,0.05443346,125.68,125.66,103.55657362]
[1743426227715,0.05443346,125.68,125.66,95.59817362]
[1743426227920,0.05443346,125.68,125.66,0.05817362]
[1743426228421,7.9579,125.67,125.66,0.05817362]
[1743426228622,0.05443346,125.68,125.66,0.05817362]
[1743426229922,0.05443346,125.68,125.66,33.59817362]
[1743426230227,33.54,125.67,125.58,33.54]
[1743426230425,33.54,125.67,125.59,1.42811438]
[1743426230823,33.54,125.67,125.6,62.0]
[1743426231024,7.9589,125.66,125.6,69.9623]
[1743426231228,0.05431552,125.65,125.6,69.9623]
[1743426231629,0.05431552,125.65,125.61,7.9617]
[1743426231923,0.05431552,125.65,125.6,62.0]
[1743426232130,0.05431552,125.65,125.6,65.9113]
[1743426232519,0.05431552,125.65,125.61,1.42814309]
[1743426232725,0.05431552,125.65,125.6,73.8733]
[1743426233230,0.05431552,125.65,125.61,7.9617]
[1743426233431,0.05431552,125.65,125.6,65.9113]
[1743426233826,12.0143,125.71,125.61,24.38180534]
[1743426234024,4.0586,125.71,125.63,22.95382763]
[1743426234328,4.0586,125.71,125.64,1.4277293]
[1743426234531,4.0586,125.71,125.65,33.54]
[1743426234730,8.0528,125.74,125.65,33.54]
[1743426235127,0.05353246,125.71,125.68,0.05272185]
[1743426235331,0.05353246,125.71,125.68,33.59272185]
[1743426235527,0.05353246,125.71,125.68,41.54962185]
[1743426235728,0.05353246,125.71,125.68,33.59272185]
[1743426236331,3.9804,125.75,125.68,33.59272185]
[1743426236723,3.9804,125.75,125.71,7.9551]
[1743426236928,3.9804,125.75,125.72,33.54]
[1743426237129,3.9804,125.75,125.69,33.54]
[1743426237330,7.9545,125.73,125.69,33.54]
[1743426237629,7.9545,125.73,125.72,0.06060841]
[1743426237827,8.01456559,125.74,125.72,0.06060841]
[1743426238837,7.9541,125.73,125.72,0.06060841]
[1743426239136,8.01456559,125.74,125.72,0.06060841]
[1743426239328,0.06076559,125.74,125.72,33.60060841]
[1743426239530,0.06076559,125.74,125.72,41.55510841]
[1743426239732,0.06076559,125.74,125.72,33.60060841]
[1743426240333,4.2871,125.79,125.72,33.60060841]
[1743426240831,22.95382763,125.81,125.72,33.60060841]
[1743426241030,22.95382763,125.81,125.73,4.3159]
[1743426241235,7.9494,125.81,125.75,7.9523]
[1743426241434,7.9494,125.81,125.76,33.54]
[1743426241630,0.05371586,125.79,125.77,0.05253956]
[1743426243131,8.00411586,125.79,125.77,0.05253956]
[1743426244041,7.951,125.78,125.77,0.05253956]
[1743426244335,0.05371586,125.79,125.77,0.05253956]
[1743426246033,23.00754349,125.79,125.77,0.05253956]
[1743426246241,7.9538,125.74,125.71,33.52]
[1743426246531,22.95382763,125.77,125.71,33.52]
[1743426246735,7.9525,125.76,125.71,41.4754]
[1743426246936,22.95382763,125.77,125.71,33.52]
[1743426247136,22.95382763,125.75,125.68,4.0215]
[1743426247334,7.9547,125.73,125.7,33.52]
[1743426247535,23.00781815,125.75,125.7,33.52]
[1743426247536,23.00781815,125.75,125.7,0.05426195]
[1743426248037,0.05399052,125.75,125.7,0.05426195]
[1743426248938,0.05399052,125.75,125.71,7.9549]
[1743426249138,0.05399052,125.75,125.72,33.52]
[1743426249638,0.05399052,125.75,125.7,33.57426195]
[1743426250141,7.9536,125.74,125.7,33.57426195]
[1743426251433,0.05399052,125.75,125.7,95.57426195]
[1743426251641,0.05399052,125.75,125.7,118.52808958]
[1743426251937,0.05399052,125.75,125.74,7.9535]
[1743426252234,0.05399052,125.75,125.74,41.4735]
[1743426253243,4.1037,125.82,125.74,33.52]
[1743426253642,4.1037,125.82,125.76,7.952]
[1743426253838,4.1037,125.82,125.77,33.52]
[1743426254242,0.05816432,125.81,125.78,0.05779694]
[1743426254743,0.05816432,125.81,125.78,8.00849694]
[1743426254945,0.05816432,125.81,125.78,0.05779694]
[1743426255333,0.05816432,125.81,125.8,7.9497]
[1743426255533,0.05816432,125.81,125.8,41.4697]
[1743426255941,0.05816432,125.81,125.8,33.52]
[1743426257444,0.05816432,125.81,125.8,41.4697]
[1743426257942,6.432e-05,125.81,125.8,41.4697]
[1743426258144,6.432e-05,125.81,125.8,103.4697]
[1743426260642,1.38276314,125.97,125.92,7.9421]
[1743426260842,1.38276314,125.97,125.93,33.5]
[1743426261037,43.86051344,125.98,125.93,33.5]
[1743426261243,43.86051344,125.98,125.94,7.9409]
[1743426261438,43.86051344,125.98,125.93,33.5]
[1743426261645,22.95382763,125.96,125.9,41.4432]
[1743426261838,3.04683339,125.95,125.93,0.0569955]
[1743426263447,26.00066102,125.95,125.93,0.0569955]
[1743426266252,3.04683339,125.95,125.93,0.0569955]
[1743426271053,3.04683339,125.95,125.94,64.35472763]
[1743426271355,4.2144,125.99,125.94,56.41382763]
[1743426271559,4.2144,125.99,125.96,7.9395]
[1743426271751,4.2144,125.99,125.94,33.46]
[1743426272056,12.1526,125.99,125.93,33.46]
[1743426272450,0.05774282,125.97,125.95,0.05467731]
[1743426274256,7.99704282,125.97,125.95,0.05467731]
[1743426274557,0.05774282,125.97,125.95,0.05467731]
[1743426276858,0.05774282,125.97,125.96,33.46]
[1743426277257,0.05774282,125.97,125.96,41.3996]
[1743426277456,33.46,126.06,125.96,56.41382763]
[1743426277657,8.2649,126.05,125.96,56.41382763]
[1743426277856,31.21872763,126.05,125.96,56.41382763]
[1743426278161,31.21872763,126.05,125.96,33.46]
[1743426278361,31.21872763,126.05,125.97,7.9389]
[1743426278562,7.9920882,126.02,125.99,0.05429071]
[1743426278868,0.0557882,126.02,125.99,0.05429071]
[1743426279463,0.0557882,126.02,125.92,22.95382763]
[1743426279658,4.0976,126.02,125.93,33.46]
[1743426279962,37.5576,126.02,125.96,7.9391]
[1743426280157,37.5576,126.02,125.94,84.95382763]
[1743426280363,4.0976,126.02,125.94,84.95382763]
[1743426280564,4.0976,126.02,125.98,7.9383]
[1743426280766,0.05305038,125.99,125.97,33.49184789]
[1743426281064,0.05305038,125.99,125.98,7.9384]
[1743426282165,0.05305038,125.99,125.97,33.49184789]
[1743426283263,0.05305038,125.99,125.97,41.43084789]
[1743426283463,0.05305038,125.99,125.97,33.49184789]
[1743426285666,0.05305038,125.99,125.97,41.43044789]
[1743426286661,0.05305038,125.99,125.98,7.9384]
[1743426286865,0.05305038,125.99,125.97,33.49184789]
[1743426287367,0.05305038,125.99,125.98,7.9384]
[1743426287767,0.05305038,125.99,125.98,22.21223842]
[1743426287966,0.05305038,125.99,125.98,7.9384]
[1743426289867,0.05305038,125.99,125.97,41.43054789]
[1743426290168,0.05305038,125.99,125.97,33.49184789]
[1743426291071,0.05305038,125.99,125.98,7.9384]
[1743426299879,0.05305038,125.99,125.97,0.05184789]
[1743426300077,0.05305038,125.99,125.97,33.47184789]
[1743426300680,0.05305038,125.99,125.97,0.05184789]
[1743426302078,7.99105038,125.99,125.94,103.3604]
[1743426302285,7.99105038,125.99,125.94,95.42]
[1743426302477,0.05305038,125.99,125.96,14.27383842]
[1743426302678,0.05305038,125.99,125.94,109.69383842]
[1743426303087,0.05305038,125.99,125.96,7.9393]
[1743426303486,0.05305038,125.99,125.96,33.42]
[1743426304190,0.05305038,125.99,125.96,41.3593]
[1743426304687,0.05305038,125.99,125.95,7.99456101]
[1743426304890,0.05305038,125.99,125.96,33.42]
[1743426305082,0.05305038,125.99,125.95,7.99456101]
[1743426305387,0.05305038,125.99,125.95,0.05466101]
[1743426306484,0.05305038,125.99,125.96,7.9393]
[1743426307886,0.05305038,125.99,125.97,7.939]
[1743426308390,0.05305038,125.99,125.96,7.9393]
[1743426308788,0.05305038,125.99,125.97,7.9389]
[1743426309893,0.05305038,125.99,125.96,7.9393]
[1743426310395,0.05305038,125.99,125.95,0.05466101]
[1743426310992,0.05305038,125.99,125.95,7.99476101]
[1743426311687,0.05305038,125.99,125.95,0.05466101]
[1743426312794,0.05305038,125.99,125.95,7.99456101]
[1743426313995,7.99085038,125.99,125.95,33.47466101]
[1743426315399,7.99085038,125.99,125.95,41.41486101]
[1743426315696,0.05305038,125.99,125.95,33.47466101]
[1743426315893,0.05305038,125.99,125.95,41.41446101]
[1743426316098,0.05305038,125.99,125.95,33.47466101]
[1743426316899,7.99115038,125.99,125.95,33.47466101]
[1743426317098,0.05305038,125.99,125.95,33.47466101]
[1743426317490,7.99115038,125.99,125.95,41.41486101]
[1743426317893,7.99115038,125.99,125.95,7.99486101]
[1743426318092,7.99115038,125.99,125.95,41.41486101]
[1743426318497,0.05305038,125.99,125.95,33.47466101]
[1743426318701,0.05305038,125.99,125.96,7.9395]
[1743426319302,0.05305038,125.99,125.96,14.27383842]
[1743426320398,0.05305038,125.99,125.98,7.9384]
[1743426320701,0.05305038,125.99,125.98,41.3584]
[1743426321501,0.05305038,125.99,125.98,55.63223842]
[1743426324807,0.05305038,125.99,125.98,22.21223842]
[1743426325000,0.05305038,125.99,125.98,41.3584]
[1743426325705,0.05305038,125.99,125.98,55.63223842]
[1743426327904,369.9324,126.08,125.98,341.21383842]
[1743426328098,7.9324,126.08,126.01,14.27383842]
[1743426328299,7.9324,126.08,126.04,7.9345]
[1743426328505,4.3392,126.09,126.02,33.4]
[1743426328702,4.3392,126.09,126.05,33.4]
[1743426328906,0.05689797,126.07,126.06,33.4]
[1743426329309,8.2037,126.11,126.08,7.9319]
[1743426329702,8.25770226,126.11,126.08,7.9319]